fUST/lending_fUST_20250112
["ID","MTS","AMOUNT","RATE_DAILY","PERIOD"]
[348574606,1736631038435,-500.0,0.00021915,2]
[348574608,1736631038445,-500.0,0.00021915,2]
[348574610,1736631038455,-500.0,0.00021915,2]
[348574612,1736631038466,-500.0,0.00021915,2]
[348574614,1736631038476,-500.0,0.00021915,2]
[348574615,1736631038486,-500.0,0.00021915,2]
[348574616,1736631038495,-500.0,0.00021915,2]
[348574617,1736631038505,-231.16975708,0.00021915,2]
[348574618,1736631038517,-500.0,0.00021915,2]
[348574619,1736631038526,-500.0,0.00021915,2]
[348574620,1736631038535,-500.0,0.00021915,2]
[348574621,1736631038544,-500.0,0.00021915,2]
[348574622,1736631038553,-648.88131088,0.00021915,2]
[348574623,1736631038562,-311.3156887,0.00021915,2]
[348574624,1736631038573,-188.6843113,0.00021915,2]
[348574625,1736631038582,-175.83571123,0.00021915,2]
[348574695,1736631046117,-324.16428877,0.00021915,2]
[348574696,1736631046127,-500.0,0.00021915,2]
[348574697,1736631046264,-500.0,0.00021915,2]
[348574698,1736631046276,-500.0,0.00021915,2]
[348574699,1736631046286,-500.0,0.00021915,2]
[348574700,1736631046296,-500.0,0.00021915,2]
[348574701,1736631046305,-377.02350622,0.00021915,2]
[348574702,1736631046322,-122.97649378,0.00021915,2]
[348574703,1736631046333,-500.0,0.00021915,2]
[348574704,1736631046342,-154.04,0.00021916,2]
[348574705,1736631046352,-177.01979836,0.00021916,2]
[348574706,1736631046362,-431.99455763,0.00021916,2]
[348574707,1736631046375,-500.0,0.00021916,7]
[348574708,1736631046384,-320.79362068,0.00021917,3]
[348574709,1736631046394,-500.81546027,0.00021917,3]
[348574710,1736631046403,-500.0,0.00021917,3]
[348574711,1736631046412,-502.70866287,0.00021917,3]
[348574712,1736631046422,-500.0,0.00021917,3]
[348574713,1736631046434,-500.0,0.00021917,3]
[348574714,1736631046443,-501.58259512,0.00021917,3]
[348574715,1736631046454,-500.0,0.00021917,3]
[348574716,1736631046463,-500.0,0.00021917,3]
[348574717,1736631046472,-500.0,0.00021917,3]
[348574718,1736631046482,-500.0,0.00021917,3]
[348574719,1736631046491,-500.0,0.00021917,3]
[348574720,1736631046502,-500.0,0.00021917,3]
[348574721,1736631046511,-500.0,0.00021917,3]
[348574722,1736631046523,-500.0,0.00021917,3]
[348574723,1736631046532,-500.0,0.00021917,3]
[348574724,1736631046541,-500.0,0.00021917,3]
[348574725,1736631046550,-457.42814686,0.00021917,3]
[348574727,1736631206072,161.924239,0.00013973,2]
[348574730,1736631950105,-230.78939111,0.00019817,2]
[348574731,1736631950126,-1326.0,0.0002,3]
[348574732,1736631950148,-1326.0,0.0002,3]
[348574733,1736631950169,-1098.81604476,0.0002,3]
[348574734,1736631952112,-227.18395524,0.0002,3]
[348574735,1736631952133,-673.55716038,0.0002,3]
[348574742,1736632037087,-224.59573337,0.000189,2]
[348574743,1736632039097,-122.76900843,0.000189,2]
[348574744,1736632039120,-652.44283962,0.0002,3]
[348574745,1736632039142,-161.924239,0.00020807,2]
[348574746,1736632039165,-300.0,0.00020989,2]
[348574747,1736632039186,-485.89540179,0.0002099,2]
[348574789,1736632232289,-347.946,0.0002108,2]
[348574791,1736632232299,-1554.8581272,0.0002132,2]
[348574793,1736632232308,-213.28068651,0.00021474,2]
[348574811,1736632232462,-86.71931349,0.00021474,2]
[348574813,1736632232471,-10794.38778855,0.00021475,2]
[348574815,1736632232480,-1242.9083536,0.00021563,2]
[348574817,1736632232489,-214.036871,0.00021663,2]
[348574819,1736632232499,-1242.90835355,0.00021851,2]
[348574821,1736632232508,-154.66,0.00021866,2]
[348574823,1736632232517,-214.036871,0.00021866,2]
[348574825,1736632232526,-998.60195726,0.00021915,2]
[348574827,1736632232535,-500.0,0.00021915,7]
[348574829,1736632232544,-500.0,0.00021916,2]
[348574831,1736632232553,-205.35433018,0.00021916,2]
[348574833,1736632232562,-500.0,0.00021916,2]
[348574835,1736632232571,-500.0,0.00021916,2]
[348574837,1736632232580,-500.0,0.00021916,2]
[348574839,1736632232589,-500.0,0.00021916,2]
[348574841,1736632232601,-500.0,0.00021916,2]
[348574843,1736632232610,-500.0,0.00021916,2]
[348574844,1736632232620,-500.0,0.00021916,2]
[348574846,1736632232629,-500.0,0.00021916,2]
[348574848,1736632232638,-335.11681021,0.00021916,2]
[348574851,1736632232647,-500.0,0.00021916,2]
[348574852,1736632232656,-299.81354623,0.00021916,2]
[348574854,1736632232665,-201.27357712,0.00021916,2]
[348574856,1736632232675,-500.0,0.00021916,2]
[348574858,1736632232684,-500.0,0.00021916,2]
[348574860,1736632232693,-500.0,0.00021916,2]
[348574862,1736632232703,-500.0,0.00021916,2]
[348574864,1736632232712,-180.05693978,0.00021916,2]
[348574866,1736632232721,-576.03134183,0.00021916,2]
[348574869,1736632232731,-165.521,0.00021916,2]
[348574870,1736632232740,-336.585,0.00021917,5]
[348574872,1736632232749,-500.0,0.00021917,3]
[348574874,1736632232758,-500.0,0.00021917,3]
[348574876,1736632232767,-89.63776579,0.00021917,3]
[348574879,1736632232779,-410.36223421,0.00021917,3]
[348574881,1736632232789,-500.0,0.00021917,3]
[348574883,1736632232798,-477.03911807,0.00021917,3]
[348574885,1736632232806,-500.0,0.00021917,3]
[348574887,1736632232816,-585.79436646,0.00021917,3]
[348574889,1736632232826,-500.0,0.00021917,3]
[348574891,1736632232835,-500.0,0.00021917,3]
[348574893,1736632232847,-500.62482765,0.00021917,3]
[348574895,1736632232857,-509.16917601,0.00021917,3]
[348574897,1736632232867,-501.08949703,0.00021917,3]
[348574899,1736632232876,-500.0,0.00021917,3]
[348574901,1736632232886,-500.50647208,0.00021917,3]
[348574902,1736632232895,-153.69171707,0.00021917,3]
[348574904,1736632232904,-500.45842542,0.00021917,3]
[348574906,1736632232913,-564.94600583,0.00021917,3]
[348574908,1736632232922,-498.80375982,0.00021917,3]
[348574910,1736632232932,-189.74015162,0.00021917,3]
[348574912,1736632232941,-500.0,0.00021917,3]
[348574914,1736632232950,-500.0,0.00021917,3]
[348574916,1736632232959,-500.93117297,0.00021917,3]
[348574918,1736632232968,-500.0,0.00021917,3]
[348574920,1736632232977,-500.0,0.00021917,3]
[348574922,1736632232988,-500.0,0.00021917,3]
[348574924,1736632233000,-500.0,0.00021917,3]
[348574926,1736632233010,-500.0,0.00021917,3]
[348574928,1736632233019,-500.0,0.00021917,3]
[348574930,1736632233030,-500.0,0.00021917,3]
[348574932,1736632233039,-500.0,0.00021917,3]
[348574934,1736632233049,-500.0,0.00021917,3]
[348574936,1736632233059,-500.0,0.00021917,3]
[348574938,1736632233072,-500.0,0.00021917,3]
[348574940,1736632233082,-500.0,0.00021917,3]
[348574942,1736632233091,-500.0,0.00021917,3]
[348574944,1736632233102,-500.0,0.00021917,3]
[348574946,1736632233112,-500.0,0.00021917,3]
[348574948,1736632233122,-500.0,0.00021917,3]
[348574951,1736632233133,-500.0,0.00021917,3]
[348574953,1736632233143,-500.0,0.00021917,3]
[348574955,1736632233153,-500.0,0.00021917,3]
[348574957,1736632233162,-500.0,0.00021917,3]
[348574958,1736632233172,-500.0,0.00021917,3]
[348574960,1736632233182,-500.0,0.00021917,3]
[348574962,1736632233191,-500.0,0.00021917,3]
[348574964,1736632233201,-500.0,0.00021917,3]
[348574966,1736632233211,-377.0959012,0.00021917,3]
[348575455,1736632238189,-605.03205158,0.00021806,6]
[348575457,1736632238199,-122.9040988,0.00021917,3]
[348575459,1736632238208,-500.0,0.00021917,3]
[348575461,1736632238217,-440.71319897,0.00021917,3]
[348575463,1736632238230,-59.28680103,0.00021917,3]
[348575465,1736632238239,-500.0,0.00021917,3]
[348575467,1736632238248,-508.73545142,0.00021917,3]
[348575469,1736632238257,-500.0,0.00021917,3]
[348575471,1736632238267,-500.0,0.00021917,3]
[348575472,1736632238275,-500.0,0.00021917,3]
[348575474,1736632238285,-500.0,0.00021917,3]
[348575476,1736632238294,-500.36594111,0.00021917,3]
[348575478,1736632238303,-500.0,0.00021917,3]
[348575480,1736632238312,-500.0,0.00021917,3]
[348575482,1736632238321,-502.94130918,0.00021917,3]
[348575483,1736632238331,-500.0,0.00021917,3]
[348575485,1736632238340,-500.0,0.00021917,3]
[348575487,1736632238352,-500.0,0.00021917,3]
[348575489,1736632238362,-504.00671933,0.00021917,3]
[348575491,1736632238370,-500.0,0.00021917,3]
[348575495,1736632238379,-500.0,0.00021917,3]
[348575497,1736632238388,-500.0,0.00021917,3]
[348575499,1736632238397,-500.0,0.00021917,3]
[348575501,1736632238406,-500.0,0.00021917,3]
[348575503,1736632238415,-645.30417336,0.00021917,3]
[348575505,1736632238424,-500.0,0.00021917,3]
[348575507,1736632238433,-500.0,0.00021917,3]
[348575508,1736632238443,-500.0,0.00021917,3]
[348575510,1736632238452,-200.0,0.00021917,3]
[348575512,1736632238461,-500.0,0.00021917,3]
[348575514,1736632238470,-500.0,0.00021917,3]
[348575516,1736632238479,-500.0,0.00021917,3]
[348575518,1736632238488,-500.0,0.00021917,3]
[348575519,1736632238497,-71.22927094,0.00021917,3]
[348575522,1736632238510,-428.77072906,0.00021917,3]
[348575523,1736632238519,-500.0,0.00021917,3]
[348575525,1736632238528,-179.52134089,0.00021917,3]
[348576262,1736632246318,-320.47865911,0.00021917,3]
[348576264,1736632246328,-500.0,0.00021917,3]
[348576266,1736632246338,-500.0,0.00021917,3]
[348576268,1736632246347,-500.0,0.00021917,3]
[348576270,1736632246357,-500.0,0.00021917,3]
[348576272,1736632246366,-500.0,0.00021917,3]
[348576274,1736632246375,-500.0,0.00021917,3]
[348576276,1736632246385,-500.0,0.00021917,3]
[348576278,1736632246394,-500.0,0.00021917,3]
[348576280,1736632246403,-500.0,0.00021917,3]
[348576282,1736632246413,-500.0,0.00021917,3]
[348576284,1736632246422,-500.0,0.00021917,3]
[348576286,1736632246431,-500.0,0.00021917,3]
[348576288,1736632246440,-500.0,0.00021917,3]
[348576290,1736632246450,-500.0,0.00021917,3]
[348576292,1736632246459,-500.0,0.00021917,3]
[348576294,1736632246467,-429.50870936,0.00021917,3]
[348576296,1736632246477,-500.0,0.00021917,3]
[348576298,1736632246486,-500.0,0.00021917,3]
[348576300,1736632246496,-500.0,0.00021917,3]
[348576302,1736632246505,-500.0,0.00021917,3]
[348576304,1736632246514,-500.0,0.00021917,3]
[348576306,1736632246523,-500.0,0.00021917,3]
[348576308,1736632246532,-500.0,0.00021917,3]
[348576310,1736632246542,-500.0,0.00021917,3]
[348576312,1736632246553,-423.22596071,0.00021917,3]
[348576315,1736632246562,-721.34,0.00021917,3]
[348576317,1736632246571,-500.0,0.00021917,3]
[348576319,1736632246580,-500.0,0.00021917,3]
[348576321,1736632246590,-500.0,0.00021917,3]
[348576323,1736632246601,-500.0,0.00021917,3]
[348576325,1736632246610,-513.86066717,0.00021917,3]
[348576327,1736632246619,-500.0,0.00021917,3]
[348576329,1736632246628,-197.62210119,0.00021917,3]
[348576331,1736632246637,-500.0,0.00021917,3]
[348576333,1736632246646,-500.0,0.00021917,3]
[348576335,1736632246656,-500.0,0.00021917,3]
[348576337,1736632246665,-500.0,0.00021917,3]
[348576339,1736632246674,-500.0,0.00021917,3]
[348576341,1736632246683,-500.0,0.00021917,3]
[348576343,1736632246692,-645.09835103,0.00021917,3]
[348576345,1736632246702,-500.0,0.00021917,3]
[348576347,1736632246712,-563.21,0.00021917,3]
[348576349,1736632246721,-500.0,0.00021917,3]
[348576351,1736632246730,-500.0,0.00021917,3]
[348576354,1736632246740,-500.0,0.00021917,3]
[348576355,1736632246748,-500.0,0.00021917,3]
[348576358,1736632246757,-500.0,0.00021917,3]
[348576360,1736632246767,-500.0,0.00021917,3]
[348576362,1736632246776,-191.98,0.00021917,3]
[348576364,1736632246785,-500.0,0.00021917,3]
[348576366,1736632246794,-500.0,0.00021917,3]
[348576368,1736632246804,-500.0,0.00021917,3]
[348576370,1736632246813,-500.0,0.00021917,3]
[348576372,1736632246822,-501.120949,0.00021917,3]
[348576374,1736632246832,-500.0,0.00021917,3]
[348576376,1736632246841,-268.9989584,0.00021917,3]
[348576378,1736632246850,-275.37594918,0.00021917,3]
[348576380,1736632246860,-500.0,0.00021917,3]
[348576382,1736632246869,-578.82877836,0.00021917,3]
[348576384,1736632246878,-500.0,0.00021917,3]
[348576386,1736632246888,-500.0,0.00021917,3]
[348576388,1736632246897,-500.0,0.00021917,3]
[348576390,1736632246906,-500.0,0.00021917,3]
[348576392,1736632246915,-500.0,0.00021917,3]
[348576394,1736632246925,-500.0,0.00021917,3]
[348576396,1736632246935,-500.0,0.00021917,3]
[348576398,1736632246945,-500.0,0.00021917,3]
[348576400,1736632246956,-275.58471025,0.00021917,3]
[348576402,1736632246966,-231.6371119,0.00021917,3]
[348576404,1736632246975,-500.0,0.00021917,3]
[348576407,1736632246985,-2834.71,0.00021917,3]
[348576408,1736632246997,-500.0,0.00021917,3]
[348576411,1736632247008,-500.0,0.00021917,3]
[348576413,1736632247017,-500.0,0.00021917,3]
[348576415,1736632247026,-500.0,0.00021917,3]
[348576417,1736632247037,-500.0,0.00021917,3]
[348576418,1736632247047,-500.0,0.00021917,3]
[348576421,1736632247058,-500.0,0.00021917,3]
[348576423,1736632247068,-500.0,0.00021917,3]
[348576425,1736632247078,-500.0,0.00021917,3]
[348576426,1736632247088,-500.0,0.00021917,3]
[348576429,1736632247098,-500.0,0.00021917,3]
[348576430,1736632247108,-500.0,0.00021917,3]
[348576433,1736632247117,-500.0,0.00021917,3]
[348576435,1736632247127,-500.0,0.00021917,3]
[348576437,1736632247136,-151.0,0.00021917,2]
[348576439,1736632247147,-500.0,0.00021917,3]
[348576441,1736632247157,-356.26871462,0.00021917,3]
[348576442,1736632247167,-500.0,0.00021917,3]
[348576444,1736632247176,-500.0,0.00021917,3]
[348576447,1736632247185,-500.0,0.00021917,3]
[348576448,1736632247195,-500.0,0.00021917,3]
[348576451,1736632247204,-218.92802672,0.00021917,3]
[348576453,1736632247215,-500.0,0.00021917,3]
[348576455,1736632247224,-500.0,0.00021917,3]
[348576456,1736632247233,-500.0,0.00021917,3]
[348576459,1736632247242,-500.0,0.00021917,3]
[348576461,1736632247251,-166.048689,0.00021917,2]
[348576463,1736632247261,-500.0,0.00021917,3]
[348576465,1736632247270,-500.0,0.00021917,3]
[348576467,1736632247280,-1580.64,0.00021917,3]
[348576469,1736632247290,-500.0,0.00021917,3]
[348576471,1736632247299,-151.0,0.00021917,2]
[348576473,1736632247309,-190.24022691,0.00021917,3]
[348576475,1736632247319,-500.0,0.00021917,3]
[348576477,1736632247328,-151.0,0.00021917,2]
[348576479,1736632247337,-500.0,0.00021917,3]
[348576481,1736632247346,-500.0,0.00021917,3]
[348576483,1736632247356,-151.0,0.00021917,2]
[348576485,1736632247365,-465.93844194,0.00021917,3]
[348576487,1736632247375,-500.0,0.00021917,3]
[348576489,1736632247384,-240.05,0.00021917,3]
[348576491,1736632247393,-284.1195,0.00021917,3]
[348576493,1736632247402,-894.05,0.00021917,3]
[348576495,1736632247412,-753.6,0.00021917,3]
[348576497,1736632247422,-12227.26,0.00021917,2]
[348576499,1736632247431,-500.0,0.00021917,3]
[348576501,1736632247441,-151.0,0.00021917,2]
[348576503,1736632247450,-2198.08,0.00021917,3]
[348576505,1736632247460,-500.0,0.00021917,3]
[348576507,1736632247470,-500.0,0.00021917,3]
[348576509,1736632247479,-807.15,0.00021917,3]
[348576512,1736632247489,-500.0,0.00021917,3]
[348576514,1736632247498,-176.7586482,0.00021917,3]
[348576516,1736632247508,-500.0,0.00021917,3]
[348576518,1736632247517,-683.83,0.00021917,3]
[348576520,1736632247526,-500.0,0.00021917,3]
[348576522,1736632247536,-500.0,0.00021917,3]
[348576524,1736632247545,-595.98,0.00021917,3]
[348576526,1736632247555,-500.0,0.00021917,3]
[348576528,1736632247564,-778.45,0.00021917,3]
[348576530,1736632247574,-500.0,0.00021917,3]
[348576532,1736632247583,-500.0,0.00021917,3]
[348576534,1736632247593,-231.67979924,0.00021917,3]
[348576535,1736632247602,-500.0,0.00021917,3]
[348576537,1736632247611,-1338.47,0.00021917,3]
[348576539,1736632247620,-432.36048218,0.00021917,3]
[348576541,1736632247630,-500.0,0.00021917,3]
[348576543,1736632247639,-500.0,0.00021917,3]
[348576545,1736632247648,-773.44,0.00021917,3]
[348576547,1736632247657,-507.2671052,0.00021917,3]
[348576549,1736632247666,-4312.39,0.00021917,3]
[348576551,1736632247675,-500.0,0.00021917,3]
[348576553,1736632247684,-500.0,0.00021917,3]
[348576555,1736632247693,-550.94,0.00021917,3]
[348576557,1736632247702,-500.0,0.00021917,3]
[348576559,1736632247711,-602.91,0.00021917,3]
[348576561,1736632247720,-1413.6,0.00021917,3]
[348576563,1736632247730,-2023.55,0.00021917,3]
[348576565,1736632247739,-507.60319418,0.00021917,3]
[348576567,1736632247749,-500.0,0.00021917,3]
[348576569,1736632247758,-500.0,0.00021917,3]
[348576571,1736632247767,-500.0,0.00021917,3]
[348576572,1736632247776,-500.0,0.00021917,3]
[348576574,1736632247785,-500.0,0.00021917,3]
[348576576,1736632247794,-500.0,0.00021917,3]
[348576578,1736632247803,-739.41,0.00021917,3]
[348576580,1736632247812,-1211.82,0.00021917,3]
[348576582,1736632247822,-4928.16,0.00021917,3]
[348576584,1736632247831,-500.0,0.00021917,3]
[348576586,1736632247840,-500.0,0.00021917,3]
[348576588,1736632247849,-501.16044359,0.00021917,3]
[348576590,1736632247859,-1473.33,0.00021917,3]
[348576592,1736632247868,-500.0,0.00021917,3]
[348576594,1736632247877,-500.0,0.00021917,3]
[348576596,1736632247886,-500.0,0.00021917,3]
[348576598,1736632247895,-500.0,0.00021917,3]
[348576600,1736632247904,-151.0,0.00021917,2]
[348576602,1736632247913,-648.82,0.00021917,3]
[348576604,1736632247922,-20077.09,0.00021917,3]
[348576606,1736632247931,-712.46,0.00021917,3]
[348576608,1736632247940,-712.46,0.00021917,3]
[348576610,1736632247949,-500.0,0.00021917,3]
[348576612,1736632247959,-712.46,0.00021917,3]
[348576614,1736632247968,-712.46,0.00021917,3]
[348576616,1736632247977,-565.19061515,0.00021917,3]
[348576618,1736632247986,-712.46,0.00021917,3]
[348576619,1736632247998,-712.46,0.00021917,3]
[348576621,1736632248007,-500.0,0.00021917,3]
[348576623,1736632248016,-712.46,0.00021917,3]
[348576625,1736632248025,-500.0,0.00021917,3]
[348576627,1736632248035,-755.08,0.00021917,3]
[348576629,1736632248044,-712.46,0.00021917,3]
[348576631,1736632248053,-789.91,0.00021917,3]
[348576633,1736632248062,-1937.35,0.00021917,3]
[348576635,1736632248073,-503.56910285,0.00021917,3]
[348576637,1736632248082,-1045.73,0.00021917,3]
[348576639,1736632248091,-1000.0,0.00021938,2]
[348576641,1736632248101,-1000.0,0.00021994,2]
[348576643,1736632248111,-1000.0,0.00022047,2]
[348576645,1736632248121,-10794.38778855,0.00022058,2]
[348576647,1736632248130,-712.46,0.00022058,3]
[348576649,1736632248139,-152.0,0.00022058,2]
[348576651,1736632248148,-214.036871,0.00022068,2]
[348576653,1736632248157,-597.31885819,0.00022072,2]
[348576655,1736632248166,-500.0,0.00022073,2]
[348576657,1736632248177,-500.0,0.00022073,2]
[348576659,1736632248186,-512.80873587,0.00022073,2]
[348576661,1736632248195,-168.3134617,0.00022073,2]
[348576663,1736632248205,-320.03220536,0.00022073,2]
[348576665,1736632248214,-500.0,0.00022073,2]
[348576667,1736632248223,-500.0,0.00022073,2]
[348576669,1736632248233,-530.47837236,0.00022073,2]
[348576671,1736632248242,-712.46,0.00022099,3]
[348576673,1736632248252,-712.46,0.00022099,3]
[348576675,1736632248261,-712.46,0.00022099,3]
[348576677,1736632248270,-712.46,0.00022099,3]
[348576679,1736632248280,-712.46,0.00022099,3]
[348576681,1736632248290,-712.46,0.00022099,3]
[348576683,1736632248300,-712.46,0.00022099,3]
[348576685,1736632248310,-712.46,0.00022099,3]
[348576687,1736632248320,-163433.31830266,0.000221,3]
[348576689,1736632248329,-300.0,0.000221,10]
[348576691,1736632248339,-152.820173,0.000221,7]
[348576693,1736632248350,-152.820173,0.000221,7]
[348576695,1736632248361,-269.112398,0.000221,2]
[348576697,1736632248370,-151.0,0.000221,7]
[348576699,1736632248380,-151.0,0.000221,7]
[348576701,1736632248389,-151.0,0.000221,7]
[348576703,1736632248399,-1000.0,0.00022125,2]
[348576705,1736632248408,-1000.0,0.00022127,2]
[348576707,1736632248418,-1000.0,0.00022135,2]
[348576709,1736632248427,-1000.0,0.00022137,2]
[348576711,1736632248437,-1242.90835355,0.0002214,2]
[348576713,1736632248446,-439.60550889,0.00022142,2]
[348576715,1736632248456,-712.46,0.00022189,3]
[348576717,1736632248466,-500.0,0.0002219,3]
[348576719,1736632248476,-500.0,0.0002219,3]
[348576721,1736632248485,-500.0,0.0002219,3]
[348576723,1736632248495,-500.0,0.0002219,3]
[348576725,1736632248505,-500.0,0.0002219,3]
[348576727,1736632248515,-712.46,0.0002219,3]
[348576729,1736632248524,-321.03659747,0.00022191,3]
[348576742,1736632248635,-151.0,0.00022191,7]
[348576744,1736632248644,-495.78768067,0.00022191,3]
[348576746,1736632248653,-500.0,0.00022191,3]
[348576748,1736632248663,-500.0,0.00022191,3]
[348576750,1736632248672,-500.0,0.00022191,3]
[348576752,1736632248682,-500.0,0.00022191,3]
[348576754,1736632248691,-500.0,0.00022191,3]
[348576756,1736632248700,-500.0,0.00022191,3]
[348576758,1736632248709,-500.0,0.00022191,3]
[348576760,1736632248718,-152.820173,0.00022191,7]
[348576762,1736632248727,-152.820173,0.00022191,7]
[348576764,1736632248737,-500.0,0.00022191,3]
[348576766,1736632248747,-500.0,0.00022191,3]
[348576768,1736632248756,-502.51035047,0.00022191,3]
[348576770,1736632248766,-500.0,0.00022191,3]
[348576772,1736632248775,-500.0,0.00022191,3]
[348576774,1736632248784,-266.75211091,0.00022191,3]
[348576776,1736632248793,-509.62425289,0.00022191,3]
[348576777,1736632248802,-500.0,0.00022191,3]
[348576779,1736632248812,-721.34,0.00022191,3]
[348576782,1736632248821,-500.0,0.00022191,3]
[348576783,1736632248831,-500.0,0.00022191,3]
[348576786,1736632248840,-563.21,0.00022191,3]
[348576788,1736632248849,-500.0,0.00022191,3]
[348576789,1736632248859,-500.0,0.00022191,3]
[348576792,1736632248869,-500.0,0.00022191,3]
[348576793,1736632248878,-500.0,0.00022191,3]
[348576795,1736632248887,-500.0,0.00022191,3]
[348576798,1736632248897,-2834.71,0.00022191,3]
[348576799,1736632248907,-507.78,0.00022191,3]
[348576801,1736632248916,-500.0,0.00022191,3]
[348576803,1736632248926,-161.1,0.00022191,3]
[348576806,1736632248936,-500.0,0.00022191,3]
[348576807,1736632248945,-500.0,0.00022191,3]
[348576809,1736632248955,-500.0,0.00022191,3]
[348576811,1736632248964,-500.0,0.00022191,3]
[348576813,1736632248974,-500.0,0.00022191,3]
[348576815,1736632248983,-1580.64,0.00022191,3]
[348576817,1736632248996,-151.0,0.00022191,7]
[348576819,1736632249006,-187.19468,0.00022191,7]
[348576821,1736632249015,-500.0,0.00022191,3]
[348576824,1736632249025,-500.0,0.00022191,3]
[348576825,1736632249034,-894.05,0.00022191,3]
[348576827,1736632249045,-753.6,0.00022191,3]
[348576829,1736632249054,-12227.26,0.00022191,2]
[348576832,1736632249064,-500.0,0.00022191,3]
[348576834,1736632249076,-2198.08,0.00022191,3]
[348576836,1736632249087,-807.15,0.00022191,3]
[348576838,1736632249096,-683.83,0.00022191,3]
[348576840,1736632249106,-500.0,0.00022191,3]
[348576842,1736632249115,-363.6839815,0.00022191,3]
[348576844,1736632249125,-595.98,0.00022191,3]
[348576846,1736632249134,-778.45,0.00022191,3]
[348576848,1736632249143,-1338.47,0.00022191,3]
[348576850,1736632249153,-500.0,0.00022191,3]
[348576851,1736632249163,-500.0,0.00022191,3]
[348576853,1736632249173,-773.44,0.00022191,3]
[348576855,1736632249183,-4312.39,0.00022191,3]
[348576857,1736632249193,-515.07,0.00022191,3]
[348576859,1736632249202,-500.0,0.00022191,3]
[348576861,1736632249212,-550.94,0.00022191,3]
[348576863,1736632249221,-500.0,0.00022191,3]
[348576865,1736632249230,-602.91,0.00022191,3]
[348576867,1736632249240,-1413.6,0.00022191,3]
[348576869,1736632249249,-2023.55,0.00022191,3]
[348576871,1736632249259,-500.0,0.00022191,3]
[348576873,1736632249269,-35.54092368,0.00022191,3]
[348577334,1736632268284,161.926793,0.00013973,2]
[348577339,1736633146129,-500.0,0.00018734,2]
[348577340,1736633146151,-879.55506574,0.0002,2]
[348577344,1736633229088,-417.61339393,0.000189,2]
[348577345,1736633229110,-124.58173176,0.0002,2]
[348577401,1736633432638,-574.45622316,0.0001983,2]
[348577403,1736633432649,-4405.8632025,0.0002,2]
[348577405,1736633432659,-302.3523871,0.00020311,2]
[348577407,1736633432669,-291.706,0.00020513,2]
[348577409,1736633432679,-200.0,0.00020986,2]
[348577411,1736633432688,-200.0,0.00020993,2]
[348577412,1736633432698,-200.0,0.00020995,2]
[348577414,1736633432707,-365.485,0.0002108,2]
[348577416,1736633432717,-161.926793,0.00021209,2]
[348577418,1736633432726,-3000.0,0.000214,2]
[348577420,1736633432735,-300.0,0.00021409,2]
[348577422,1736633432746,-3572.759597,0.0002141,2]
[348577424,1736633432755,-5410.0,0.000216,4]
[348577425,1736633432764,-500.0,0.00021815,7]
[348577427,1736633432774,-153.0,0.00021865,2]